[Event "*** Titled Tuesday 3|2 Blitz"]
[Site "Chess.com"]
[Date "2016.08.02"]
[Round "2"]
[White "Tash_Boy"]
[Black "Zhani-Z"]
[Result "0-1"]
[WhiteElo "2288"]
[BlackElo "2285"]
[TimeControl "180+2"]
[EndTime "11:23:54 PDT"]
[Termination "Zhani-Z won by resignation"]

1. e4 {[%clk 0:03:01.9]} 1... c5 {[%clk 0:03:00.6]} 2. Nf3 {[%clk 0:03:01.9]}
2... d6 {[%clk 0:03:01.3]} 3. d4 {[%clk 0:03:03.3]} 3... cxd4 {[%clk 0:03:02.3]}
4. Nxd4 {[%clk 0:03:04.8]} 4... Nf6 {[%clk 0:03:03.9]} 5. Nc3 {[%clk 0:03:05.1]}
5... g6 {[%clk 0:03:05.4]} 6. Be3 {[%clk 0:03:05.4]} 6... a6 {[%clk 0:03:06.4]}
7. f3 {[%clk 0:03:05.1]} 7... b5 {[%clk 0:03:07]} 8. a3 {[%clk 0:03:03.1]} 8...
Bb7 {[%clk 0:03:07.5]} 9. Qd2 {[%clk 0:03:04.6]} 9... Nbd7 {[%clk 0:03:08.5]}
10. O-O-O {[%clk 0:03:06.2]} 10... Rc8 {[%clk 0:03:06.2]} 11. g4 {[%clk
0:03:07.8]} 11... h6 {[%clk 0:03:07]} 12. h4 {[%clk 0:03:08.5]} 12... Ne5 {[%clk
0:03:05.2]} 13. Rh3 {[%clk 0:03:05.1]} 13... Nfd7 {[%clk 0:03:03.4]} 14. Nd5
{[%clk 0:02:10]} 14... e6 {[%clk 0:02:46.2]} 15. Nf4 {[%clk 0:02:06.7]} 15...
Nc5 {[%clk 0:02:34.8]} 16. Kb1 {[%clk 0:02:05.4]} 16... Qc7 {[%clk 0:02:23.6]}
17. Rh2 {[%clk 0:01:36.6]} 17... Bg7 {[%clk 0:02:13.9]} 18. Bxb5+ {[%clk
0:01:37.3]} 18... Ke7 {[%clk 0:02:09.6]} 19. Be2 {[%clk 0:01:33.2]} 19... Rb8
{[%clk 0:02:07.2]} 20. Nb3 {[%clk 0:01:24.3]} 20... Na4 {[%clk 0:01:03.1]} 21.
Bd4 {[%clk 0:01:24]} 21... Rhc8 {[%clk 0:00:58.5]} 22. Rc1 {[%clk 0:00:45]}
22... Ba8 {[%clk 0:00:57.8]} 23. Bxa6 {[%clk 0:00:38.2]} 23... Nxf3 {[%clk
0:00:55.6]} 24. Qe3 {[%clk 0:00:20.9]} 24... Nxd4 {[%clk 0:00:32.9]} 25. Bxc8
{[%clk 0:00:21.9]} 25... Nb5 {[%clk 0:00:29]} 26. c4 {[%clk 0:00:10.8]} 26...
Nxa3+ {[%clk 0:00:27.1]} 27. bxa3 {[%clk 0:00:11.5]} 27... Qxc8 {[%clk
0:00:26.8]} 28. Nd5+ {[%clk 0:00:08.8]} 28... exd5 {[%clk 0:00:25.4]} 29. exd5+
{[%clk 0:00:10.3]} 29... Kf8 {[%clk 0:00:26.9]} 30. Re2 {[%clk 0:00:11.2]} 30...
Qxg4 {[%clk 0:00:23.3]} 31. Qe7+ {[%clk 0:00:11.7]} 31... Kg8 {[%clk 0:00:24]}
32. Ka2 {[%clk 0:00:13.3]} 32... Nc3+ {[%clk 0:00:23.5]} 33. Rxc3 {[%clk
0:00:13.8]} 33... Bxc3 {[%clk 0:00:24.6]} 34. Rc2 {[%clk 0:00:14]} 34... Be5
{[%clk 0:00:23.1]} 35. Qa7 {[%clk 0:00:12.7]} 35... Qc8 {[%clk 0:00:20.5]} 36.
c5 {[%clk 0:00:13]} 36... Bxd5 {[%clk 0:00:20.7]} 0-1

[Event "*** Titled Tuesday 3|2 Blitz"]
[Site "Chess.com"]
[Date "2016.08.02"]
[Round "2"]
[White "Alliswell998"]
[Black "E-Shaposhnikov"]
[Result "0-1"]
[WhiteElo "2208"]
[BlackElo "2695"]
[TimeControl "180+2"]
[EndTime "11:23:55 PDT"]
[Termination "E-Shaposhnikov won by resignation"]

1. e4 {[%clk 0:02:56.4]} 1... c5 {[%clk 0:02:46.5]} 2. Nc3 {[%clk 0:02:55.3]}
2... e6 {[%clk 0:01:58.5]} 3. f4 {[%clk 0:02:55.4]} 3... d5 {[%clk 0:01:53.5]}
4. Nf3 {[%clk 0:02:55.2]} 4... d4 {[%clk 0:01:51.8]} 5. Bb5+ {[%clk 0:02:48.9]}
5... Bd7 {[%clk 0:01:37.1]} 6. Bxd7+ {[%clk 0:02:48.3]} 6... Nxd7 {[%clk
0:01:39]} 7. Nb1 {[%clk 0:02:42.3]} 7... f5 {[%clk 0:01:26.7]} 8. d3 {[%clk
0:02:40.8]} 8... Ngf6 {[%clk 0:01:26.6]} 9. Nbd2 {[%clk 0:02:40.1]} 9... Qc7
{[%clk 0:01:15.3]} 10. e5 {[%clk 0:02:06.1]} 10... Nd5 {[%clk 0:01:14.1]} 11.
Nf1 {[%clk 0:01:54.5]} 11... Be7 {[%clk 0:01:12.1]} 12. Qe2 {[%clk 0:01:54]}
12... O-O {[%clk 0:01:09.9]} 13. Ng3 {[%clk 0:01:52.5]} 13... b5 {[%clk
0:01:09.4]} 14. O-O {[%clk 0:01:51.8]} 14... Rac8 {[%clk 0:00:53]} 15. Kh1
{[%clk 0:01:47.7]} 15... a5 {[%clk 0:00:51.7]} 16. Bd2 {[%clk 0:01:43.2]} 16...
a4 {[%clk 0:00:51.9]} 17. a3 {[%clk 0:01:42.9]} 17... Qb6 {[%clk 0:00:43.7]} 18.
Rfd1 {[%clk 0:01:37.8]} 18... c4 {[%clk 0:00:44.4]} 19. dxc4 {[%clk 0:01:32.6]}
19... bxc4 {[%clk 0:00:44.8]} 20. Bb4 {[%clk 0:00:54.5]} 20... Bxb4 {[%clk
0:00:37.7]} 21. axb4 {[%clk 0:00:54.7]} 21... d3 {[%clk 0:00:38.4]} 22. cxd3
{[%clk 0:00:51.9]} 22... Nxf4 {[%clk 0:00:39.3]} 23. Qd2 {[%clk 0:00:45.4]}
23... Nxd3 {[%clk 0:00:39.4]} 24. Rf1 {[%clk 0:00:39.5]} 24... Qxb4 {[%clk
0:00:34.4]} 25. Qxb4 {[%clk 0:00:40]} 25... Nxb4 {[%clk 0:00:36.3]} 26. Rxa4
{[%clk 0:00:41.5]} 26... Nd3 {[%clk 0:00:37.3]} 27. Rb1 {[%clk 0:00:39.4]} 27...
N7xe5 {[%clk 0:00:30.6]} 28. Nd4 {[%clk 0:00:39.6]} 28... Rfe8 {[%clk
0:00:23.7]} 29. Nge2 {[%clk 0:00:40.3]} 29... Rb8 {[%clk 0:00:22.1]} 30. Ra2
{[%clk 0:00:25.8]} 30... Rb6 {[%clk 0:00:22.4]} 31. Nf4 {[%clk 0:00:26.1]} 31...
Nxf4 {[%clk 0:00:19.8]} 32. g3 {[%clk 0:00:24.1]} 32... Nfd3 {[%clk 0:00:19.8]}
33. Kg2 {[%clk 0:00:23.8]} 33... c3 {[%clk 0:00:20.1]} 34. b4 {[%clk 0:00:21.4]}
34... Rxb4 {[%clk 0:00:18.1]} 35. Rd1 {[%clk 0:00:20.4]} 35... Rb2+ {[%clk
0:00:18.3]} 36. Rxb2 {[%clk 0:00:21.2]} 36... cxb2 {[%clk 0:00:19.9]} 37. Rb1
{[%clk 0:00:22]} 37... Ra8 {[%clk 0:00:20.3]} 38. Nb5 {[%clk 0:00:20]} 38... Ra1
{[%clk 0:00:18.8]} 39. Nc3 {[%clk 0:00:21.3]} 39... Rxb1 {[%clk 0:00:18.6]} 40.
Nxb1 {[%clk 0:00:23.2]} 40... Nc4 {[%clk 0:00:18.6]} 41. Kf1 {[%clk 0:00:23.7]}
41... e5 {[%clk 0:00:18.8]} 42. Ke2 {[%clk 0:00:25.1]} 42... e4 {[%clk
0:00:20.4]} 0-1

[Event "*** Titled Tuesday 3|2 Blitz"]
[Site "Chess.com"]
[Date "2016.08.02"]
[Round "2"]
[White "eltenedor"]
[Black "fireheart92"]
[Result "0-1"]
[WhiteElo "2037"]
[BlackElo "2291"]
[TimeControl "180+2"]
[EndTime "11:23:59 PDT"]
[Termination "fireheart92 won on time"]

1. c4 {[%clk 0:02:53.5]} 1... e5 {[%clk 0:03:00.4]} 2. g3 {[%clk 0:02:53.4]}
2... Nf6 {[%clk 0:02:57.3]} 3. Bg2 {[%clk 0:02:53.5]} 3... d5 {[%clk 0:02:52.3]}
4. cxd5 {[%clk 0:02:53.6]} 4... Nxd5 {[%clk 0:02:53.2]} 5. Nf3 {[%clk 0:02:55]}
5... Nc6 {[%clk 0:02:53.6]} 6. O-O {[%clk 0:02:54.1]} 6... Be7 {[%clk
0:02:54.3]} 7. d4 {[%clk 0:02:53.8]} 7... e4 {[%clk 0:02:55.2]} 8. Ne5 {[%clk
0:02:54.2]} 8... f5 {[%clk 0:02:55.6]} 9. Nxc6 {[%clk 0:02:54.3]} 9... bxc6
{[%clk 0:02:56.9]} 10. Qc2 {[%clk 0:02:54.7]} 10... O-O {[%clk 0:02:45.9]} 11.
Qxc6 {[%clk 0:02:50]} 11... Rb8 {[%clk 0:02:41.4]} 12. a3 {[%clk 0:02:12.6]}
12... Rb6 {[%clk 0:02:30.5]} 13. Qc2 {[%clk 0:02:12.4]} 13... Ba6 {[%clk
0:02:29.1]} 14. Re1 {[%clk 0:01:39.3]} 14... Bf6 {[%clk 0:01:28.1]} 15. Nc3
{[%clk 0:01:18.9]} 15... Bxd4 {[%clk 0:01:24.8]} 16. Rd1 {[%clk 0:01:06.9]}
16... Bxc3 {[%clk 0:01:25.4]} 17. bxc3 {[%clk 0:01:06.5]} 17... Rd6 {[%clk
0:01:26.5]} 18. Bd2 {[%clk 0:00:57.2]} 18... Bxe2 {[%clk 0:01:25.8]} 19. Re1
{[%clk 0:00:52.8]} 19... Bd3 {[%clk 0:01:22.7]} 20. Qb3 {[%clk 0:00:53.4]} 20...
Rb6 {[%clk 0:01:23.1]} 21. Qa2 {[%clk 0:00:52.3]} 21... Kh8 {[%clk 0:01:21.9]}
22. c4 {[%clk 0:00:50.5]} 22... Nf6 {[%clk 0:01:17.2]} 23. Be3 {[%clk
0:00:41.1]} 23... Rc6 {[%clk 0:01:11.2]} 24. Rac1 {[%clk 0:00:41.4]} 24... a6
{[%clk 0:01:11.8]} 25. Red1 {[%clk 0:00:33.4]} 25... Ng4 {[%clk 0:01:12.3]} 26.
Bf4 {[%clk 0:00:27.1]} 26... Qd4 {[%clk 0:00:54.8]} 27. h3 {[%clk 0:00:19.8]}
27... Nf6 {[%clk 0:00:55.8]} 28. Be3 {[%clk 0:00:18.1]} 28... Qe5 {[%clk
0:00:56.7]} 29. Rxd3 {[%clk 0:00:17.5]} 29... exd3 {[%clk 0:00:57.9]} 30. Bxc6
{[%clk 0:00:17.7]} 30... Nh5 {[%clk 0:00:57.8]} 31. Qa1 {[%clk 0:00:16.8]} 31...
Qd6 {[%clk 0:00:56.1]} 32. Bf3 {[%clk 0:00:15.8]} 32... Nxg3 {[%clk 0:00:57]}
33. Kg2 {[%clk 0:00:14.7]} 33... f4 {[%clk 0:00:43.8]} 34. Bd4 {[%clk
0:00:14.6]} 34... Nf5 {[%clk 0:00:45]} 35. Bc3 {[%clk 0:00:11.1]} 35... Nh4+
{[%clk 0:00:45.6]} 36. Kh1 {[%clk 0:00:09.6]} 36... Qd7 {[%clk 0:00:45.7]} 37.
Bg4 {[%clk 0:00:09.6]} 37... Qc6+ {[%clk 0:00:45]} 38. f3 {[%clk 0:00:07.2]}
38... Nxf3 {[%clk 0:00:44.7]} 39. Bxg7+ {[%clk 0:00:06.1]} 39... Kg8 {[%clk
0:00:46.1]} 40. Bxf3 {[%clk 0:00:04.1]} 40... Qxf3+ {[%clk 0:00:47.1]} 41. Kh2
{[%clk 0:00:05.3]} 41... Qg3+ {[%clk 0:00:47.5]} 42. Kh1 {[%clk 0:00:05.4]}
42... Qxh3+ {[%clk 0:00:48.7]} 43. Kg1 {[%clk 0:00:05.9]} 43... Rf5 {[%clk
0:00:49.7]} 44. Kf2 {[%clk 0:00:03.4]} 44... Rg5 {[%clk 0:00:49.7]} 45. Rg1
{[%clk 0:00:03.6]} 45... Qe3+ {[%clk 0:00:50.6]} 0-1

[Event "*** Titled Tuesday 3|2 Blitz"]
[Site "Chess.com"]
[Date "2016.08.02"]
[Round "2"]
[White "josiwales"]
[Black "CroatianPower"]
[Result "0-1"]
[WhiteElo "2146"]
[BlackElo "2424"]
[TimeControl "180+2"]
[EndTime "11:23:59 PDT"]
[Termination "CroatianPower won by resignation"]

1. e4 {[%clk 0:03:01.9]} 1... e6 {[%clk 0:02:56]} 2. d3 {[%clk 0:03:02.7]} 2...
d5 {[%clk 0:02:57.2]} 3. Qe2 {[%clk 0:03:04.2]} 3... Be7 {[%clk 0:02:57.5]} 4.
Nf3 {[%clk 0:03:05.3]} 4... Nf6 {[%clk 0:02:58.6]} 5. e5 {[%clk 0:03:05.2]} 5...
Nfd7 {[%clk 0:02:59.3]} 6. g3 {[%clk 0:03:07.1]} 6... c5 {[%clk 0:03:00.5]} 7.
Bg2 {[%clk 0:03:08.4]} 7... Nc6 {[%clk 0:03:02.2]} 8. h4 {[%clk 0:03:09.7]} 8...
Qc7 {[%clk 0:03:02.1]} 9. Bf4 {[%clk 0:03:10.7]} 9... b6 {[%clk 0:03:03.4]} 10.
O-O {[%clk 0:03:11]} 10... Bb7 {[%clk 0:03:05]} 11. h5 {[%clk 0:03:12]} 11... h6
{[%clk 0:03:04.6]} 12. g4 {[%clk 0:03:10.4]} 12... O-O-O {[%clk 0:03:05.3]} 13.
Bg3 {[%clk 0:03:10.6]} 13... g6 {[%clk 0:03:04.7]} 14. Nbd2 {[%clk 0:03:10.4]}
14... gxh5 {[%clk 0:03:05.1]} 15. gxh5 {[%clk 0:03:12.3]} 15... Rdg8 {[%clk
0:03:06.6]} 16. c4 {[%clk 0:03:11.8]} 16... d4 {[%clk 0:03:07.6]} 17. Rae1
{[%clk 0:03:04.2]} 17... Nf8 {[%clk 0:02:59.6]} 18. Ne4 {[%clk 0:03:02.9]} 18...
Nh7 {[%clk 0:02:59.9]} 19. Nd6+ {[%clk 0:02:59.4]} 19... Bxd6 {[%clk 0:03:01.1]}
20. exd6 {[%clk 0:02:58.6]} 20... Qd7 {[%clk 0:03:02.5]} 21. Kh1 {[%clk
0:02:51]} 21... Ng5 {[%clk 0:03:01.1]} 22. Nxg5 {[%clk 0:02:50.7]} 22... hxg5
{[%clk 0:02:54.8]} 23. f4 {[%clk 0:02:24.2]} 23... gxf4 {[%clk 0:02:31.9]} 24.
Bxf4 {[%clk 0:02:21.8]} 24... Ne5 {[%clk 0:01:58.5]} 25. Rg1 {[%clk 0:01:16]}
25... Ng4 {[%clk 0:01:30.1]} 26. Bxb7+ {[%clk 0:01:01.4]} 26... Qxb7+ {[%clk
0:01:30.3]} 27. Rg2 {[%clk 0:01:02.6]} 27... e5 {[%clk 0:00:41]} 28. Kg1 {[%clk
0:00:42.8]} 28... f5 {[%clk 0:00:31.8]} 29. Bd2 {[%clk 0:00:08.2]} 29... Ne3
{[%clk 0:00:26.6]} 30. Bxe3 {[%clk 0:00:07.2]} 30... dxe3 {[%clk 0:00:28.5]} 31.
Rxg8+ {[%clk 0:00:06.7]} 31... Rxg8+ {[%clk 0:00:29.6]} 32. Kh2 {[%clk
0:00:08.6]} 32... f4 {[%clk 0:00:29.5]} 33. Rg1 {[%clk 0:00:07.4]} 33... Rxg1
{[%clk 0:00:29.6]} 34. Kxg1 {[%clk 0:00:09.3]} 34... Qg7+ {[%clk 0:00:30.8]} 35.
Kh1 {[%clk 0:00:10]} 35... Qg3 {[%clk 0:00:28.4]} 36. h6 {[%clk 0:00:09.4]}
36... Qh4+ {[%clk 0:00:25.2]} 37. Kg1 {[%clk 0:00:10.2]} 37... Qg3+ {[%clk
0:00:21]} 38. Kh1 {[%clk 0:00:10.6]} 38... f3 {[%clk 0:00:21.7]} 39. h7 {[%clk
0:00:11]} 39... Qh3+ {[%clk 0:00:21.6]} 40. Kg1 {[%clk 0:00:11.6]} 40... fxe2
{[%clk 0:00:20.6]} 0-1

[Event "*** Titled Tuesday 3|2 Blitz"]
[Site "Chess.com"]
[Date "2016.08.02"]
[Round "2"]
[White "Bab3s"]
[Black "HansCoolNiemann"]
[Result "1-0"]
[WhiteElo "2170"]
[BlackElo "2314"]
[TimeControl "180+2"]
[EndTime "11:24:09 PDT"]
[Termination "Bab3s won by checkmate"]

1. e4 {[%clk 0:03:01.9]} 1... e6 {[%clk 0:03:00.5]} 2. d4 {[%clk 0:03:02.7]}
2... d5 {[%clk 0:03:02]} 3. Nc3 {[%clk 0:03:04]} 3... Nf6 {[%clk 0:03:00.6]} 4.
e5 {[%clk 0:03:05.1]} 4... Nfd7 {[%clk 0:03:00.8]} 5. f4 {[%clk 0:03:06.6]} 5...
c5 {[%clk 0:03:02.4]} 6. Nf3 {[%clk 0:03:08.1]} 6... Nc6 {[%clk 0:03:03.6]} 7.
Be3 {[%clk 0:03:09.6]} 7... cxd4 {[%clk 0:03:05.2]} 8. Nxd4 {[%clk 0:03:11.5]}
8... Bc5 {[%clk 0:03:06.8]} 9. Qd2 {[%clk 0:03:11.5]} 9... O-O {[%clk
0:03:07.3]} 10. O-O-O {[%clk 0:03:11.9]} 10... a6 {[%clk 0:03:08.5]} 11. Nb3
{[%clk 0:02:59]} 11... Bxe3 {[%clk 0:03:04.4]} 12. Qxe3 {[%clk 0:03:00.9]} 12...
b5 {[%clk 0:03:05.6]} 13. Ne2 {[%clk 0:02:53.9]} 13... Bb7 {[%clk 0:02:55]} 14.
Ned4 {[%clk 0:02:53.6]} 14... Nxd4 {[%clk 0:02:47.6]} 15. Nxd4 {[%clk
0:02:55.5]} 15... Qa5 {[%clk 0:02:21.9]} 16. Kb1 {[%clk 0:02:56]} 16... Rac8
{[%clk 0:02:20.4]} 17. Bd3 {[%clk 0:02:47.2]} 17... Rfe8 {[%clk 0:02:06]} 18.
Nf3 {[%clk 0:02:27]} 18... Qb6 {[%clk 0:01:13]} 19. Qe1 {[%clk 0:01:33]} 19...
Nf8 {[%clk 0:01:06.3]} 20. h4 {[%clk 0:01:32.4]} 20... Rcd8 {[%clk 0:00:53.9]}
21. h5 {[%clk 0:01:31.4]} 21... d4 {[%clk 0:00:51.5]} 22. h6 {[%clk 0:01:27.8]}
22... g6 {[%clk 0:00:50.9]} 23. Qh4 {[%clk 0:01:28.2]} 23... Nd7 {[%clk
0:00:46.4]} 24. Nh2 {[%clk 0:00:42.2]} 24... Rc8 {[%clk 0:00:38.4]} 25. Ng4
{[%clk 0:00:40.8]} 25... Qd8 {[%clk 0:00:37.4]} 26. Qg3 {[%clk 0:00:30.8]} 26...
Bd5 {[%clk 0:00:35.6]} 27. f5 {[%clk 0:00:21.2]} 27... Qg5 {[%clk 0:00:30]} 28.
Nf6+ {[%clk 0:00:17.4]} 28... Qxf6 {[%clk 0:00:25.5]} 29. exf6 {[%clk
0:00:17.9]} 29... exf5 {[%clk 0:00:22.6]} 30. Bxf5 {[%clk 0:00:14.8]} 30... Be6
{[%clk 0:00:20.6]} 31. Bxe6 {[%clk 0:00:14.6]} 31... Rxe6 {[%clk 0:00:22.5]} 32.
Rxd4 {[%clk 0:00:15.4]} 32... Nxf6 {[%clk 0:00:24]} 33. Rhd1 {[%clk 0:00:15.6]}
33... Ree8 {[%clk 0:00:21.7]} 34. Qf4 {[%clk 0:00:14.5]} 34... Nh5 {[%clk
0:00:15.2]} 35. Qf3 {[%clk 0:00:14.3]} 35... a5 {[%clk 0:00:13]} 36. a3 {[%clk
0:00:14.7]} 36... a4 {[%clk 0:00:13.7]} 37. Rd7 {[%clk 0:00:15]} 37... f5 {[%clk
0:00:09.5]} 38. Qd5+ {[%clk 0:00:15]} 38... Kh8 {[%clk 0:00:10.7]} 39. Qd4+
{[%clk 0:00:15.8]} 39... Kg8 {[%clk 0:00:12.1]} 40. Rg7+ {[%clk 0:00:15.2]}
40... Kf8 {[%clk 0:00:14]} 41. Qd6+ {[%clk 0:00:15.3]} 41... Re7 {[%clk
0:00:15.9]} 42. Qxe7# {[%clk 0:00:16.4]} 1-0

[Event "*** Titled Tuesday 3|2 Blitz"]
[Site "Chess.com"]
[Date "2016.08.02"]
[Round "2"]
[White "1stSecond"]
[Black "Caisachess"]
[Result "1-0"]
[WhiteElo "2533"]
[BlackElo "2178"]
[TimeControl "180+2"]
[EndTime "11:24:11 PDT"]
[Termination "1stSecond won by resignation"]

1. d4 {[%clk 0:03:01.9]} 1... Nf6 {[%clk 0:03:00.6]} 2. c4 {[%clk 0:03:03.4]}
2... e6 {[%clk 0:03:01.9]} 3. Nc3 {[%clk 0:03:04.5]} 3... Bb4 {[%clk 0:03:02.8]}
4. e3 {[%clk 0:03:06.1]} 4... O-O {[%clk 0:03:02.2]} 5. Ne2 {[%clk 0:03:07.5]}
5... d5 {[%clk 0:03:03.1]} 6. a3 {[%clk 0:03:08.9]} 6... Be7 {[%clk 0:03:00.9]}
7. cxd5 {[%clk 0:03:07.3]} 7... exd5 {[%clk 0:03:01.6]} 8. g3 {[%clk 0:03:08.9]}
8... c6 {[%clk 0:03:02.4]} 9. Bg2 {[%clk 0:03:10.4]} 9... Bf5 {[%clk 0:03:01.2]}
10. O-O {[%clk 0:03:06.2]} 10... Re8 {[%clk 0:03:02.3]} 11. f3 {[%clk
0:03:06.9]} 11... Bf8 {[%clk 0:02:59.9]} 12. Nf4 {[%clk 0:02:57.5]} 12... h6
{[%clk 0:02:53.9]} 13. b3 {[%clk 0:02:44.1]} 13... Nbd7 {[%clk 0:02:46.6]} 14.
Ra2 {[%clk 0:02:44.7]} 14... Bd6 {[%clk 0:02:47.3]} 15. Re2 {[%clk 0:02:41.3]}
15... Nf8 {[%clk 0:02:27.7]} 16. g4 {[%clk 0:02:31.6]} 16... Bd7 {[%clk
0:02:23.6]} 17. h3 {[%clk 0:02:30.7]} 17... Qc7 {[%clk 0:02:23.6]} 18. Qd2
{[%clk 0:02:08.8]} 18... Bxf4 {[%clk 0:02:06.7]} 19. exf4 {[%clk 0:02:10.7]}
19... Rxe2 {[%clk 0:02:07.4]} 20. Nxe2 {[%clk 0:01:59.4]} 20... Ng6 {[%clk
0:01:57.1]} 21. f5 {[%clk 0:01:53.7]} 21... Ne7 {[%clk 0:01:54.8]} 22. Qb4
{[%clk 0:01:51.6]} 22... Be8 {[%clk 0:01:47.1]} 23. Bf4 {[%clk 0:01:52.3]} 23...
Qd7 {[%clk 0:01:48.1]} 24. Re1 {[%clk 0:01:52.6]} 24... Rd8 {[%clk 0:01:43.7]}
25. Ng3 {[%clk 0:01:49.9]} 25... Nc8 {[%clk 0:01:44]} 26. h4 {[%clk 0:01:49.5]}
26... b6 {[%clk 0:01:36.8]} 27. g5 {[%clk 0:01:49.2]} 27... hxg5 {[%clk
0:01:37.4]} 28. hxg5 {[%clk 0:01:51.1]} 28... Nh7 {[%clk 0:01:35.8]} 29. Bh3
{[%clk 0:01:36]} 29... a5 {[%clk 0:01:30.9]} 30. Qd2 {[%clk 0:01:30.5]} 30...
Nd6 {[%clk 0:01:20.5]} 31. Kg2 {[%clk 0:01:26.8]} 31... f6 {[%clk 0:01:20.9]}
32. g6 {[%clk 0:01:26.1]} 32... Nf8 {[%clk 0:01:20.4]} 33. Bg4 {[%clk
0:01:26.5]} 33... c5 {[%clk 0:00:54.9]} 34. dxc5 {[%clk 0:01:22.3]} 34... Nb5
{[%clk 0:00:49]} 35. a4 {[%clk 0:01:17.7]} 35... Nc7 {[%clk 0:00:39.6]} 36. cxb6
{[%clk 0:01:15]} 36... Na6 {[%clk 0:00:40.9]} 37. Qxa5 {[%clk 0:01:14.9]} 37...
Nb8 {[%clk 0:00:42.2]} 38. Bc7 {[%clk 0:01:11.5]} 38... Rc8 {[%clk 0:00:42.2]}
39. Rh1 {[%clk 0:00:53.3]} 39... Nc6 {[%clk 0:00:41.3]} 40. Qc5 {[%clk
0:00:51.7]} 40... Ne7 {[%clk 0:00:26.1]} 41. a5 {[%clk 0:00:48.4]} 41... Nfxg6
{[%clk 0:00:18.4]} 42. fxg6 {[%clk 0:00:48.7]} 42... f5 {[%clk 0:00:19.9]} 43.
Nxf5 {[%clk 0:00:48.6]} 43... Nxg6 {[%clk 0:00:11.1]} 44. Nh6+ {[%clk
0:00:46.3]} 44... gxh6 {[%clk 0:00:12.1]} 45. Bxd7 {[%clk 0:00:48]} 45... Bxd7
{[%clk 0:00:13.1]} 46. Qxd5+ {[%clk 0:00:49.6]} 1-0

[Event "*** Titled Tuesday 3|2 Blitz"]
[Site "Chess.com"]
[Date "2016.08.02"]
[Round "2"]
[White "GMKrikor"]
[Black "pedromartinez91"]
[Result "1-0"]
[WhiteElo "2494"]
[BlackElo "2264"]
[TimeControl "180+2"]
[EndTime "11:24:23 PDT"]
[Termination "GMKrikor won by resignation"]

1. d4 {[%clk 0:03:01.9]} 1... d5 {[%clk 0:02:57.1]} 2. Bf4 {[%clk 0:03:03.1]}
2... e6 {[%clk 0:02:55.2]} 3. e3 {[%clk 0:03:03.4]} 3... Bd6 {[%clk 0:02:55.6]}
4. c3 {[%clk 0:02:54.7]} 4... Bxf4 {[%clk 0:02:48.8]} 5. exf4 {[%clk 0:02:55.7]}
5... c5 {[%clk 0:02:49.8]} 6. dxc5 {[%clk 0:02:55]} 6... Nf6 {[%clk 0:02:45.2]}
7. Nf3 {[%clk 0:02:54.8]} 7... Qc7 {[%clk 0:02:45.3]} 8. Qd4 {[%clk 0:02:46.5]}
8... Nc6 {[%clk 0:02:45.9]} 9. Bb5 {[%clk 0:02:47.2]} 9... O-O {[%clk
0:02:42.3]} 10. Bxc6 {[%clk 0:02:48.1]} 10... bxc6 {[%clk 0:02:24.2]} 11. O-O
{[%clk 0:02:48.9]} 11... Rb8 {[%clk 0:02:24.9]} 12. b4 {[%clk 0:02:47.6]} 12...
Ba6 {[%clk 0:02:25.6]} 13. Re1 {[%clk 0:02:48.4]} 13... Nh5 {[%clk 0:01:57.8]}
14. Qe5 {[%clk 0:02:39.3]} 14... Qxe5 {[%clk 0:01:57.6]} 15. fxe5 {[%clk
0:02:41.2]} 15... Nf4 {[%clk 0:01:58.6]} 16. Nbd2 {[%clk 0:02:40]} 16... Ne2+
{[%clk 0:01:58.7]} 17. Rxe2 {[%clk 0:02:41.5]} 17... Bxe2 {[%clk 0:01:59]} 18.
Nd4 {[%clk 0:02:43.4]} 18... Bd3 {[%clk 0:01:47.9]} 19. Nxc6 {[%clk 0:02:44.1]}
19... Rb7 {[%clk 0:01:48.7]} 20. f3 {[%clk 0:02:40.8]} 20... f6 {[%clk
0:01:47.9]} 21. Kf2 {[%clk 0:02:40.7]} 21... Rc8 {[%clk 0:01:46.5]} 22. Na5
{[%clk 0:02:39.4]} 22... Rb5 {[%clk 0:01:40.3]} 23. exf6 {[%clk 0:02:34.1]}
23... gxf6 {[%clk 0:01:38.9]} 24. Nab3 {[%clk 0:02:30.3]} 24... e5 {[%clk
0:01:36.5]} 25. Ke3 {[%clk 0:02:29.7]} 25... Bc2 {[%clk 0:01:34.2]} 26. a4
{[%clk 0:02:07]} 26... Rb7 {[%clk 0:01:27.9]} 27. b5 {[%clk 0:02:05.6]} 27...
Rg7 {[%clk 0:01:23.4]} 28. g3 {[%clk 0:02:04.3]} 28... Kf7 {[%clk 0:01:24.4]}
29. Rc1 {[%clk 0:02:04.4]} 29... Bxb3 {[%clk 0:01:15.3]} 30. Nxb3 {[%clk
0:02:05.5]} 30... Ke6 {[%clk 0:01:17]} 31. Kd3 {[%clk 0:01:03.4]} 31... h5
{[%clk 0:01:17]} 32. Re1 {[%clk 0:00:59.5]} 32... Kf5 {[%clk 0:01:10.5]} 33. f4
{[%clk 0:00:52.7]} 33... h4 {[%clk 0:01:09.9]} 34. Re3 {[%clk 0:00:42.8]} 34...
Rcg8 {[%clk 0:00:54.4]} 35. c6 {[%clk 0:00:34.6]} 35... hxg3 {[%clk 0:00:55.1]}
36. hxg3 {[%clk 0:00:35.2]} 36... Rxg3 {[%clk 0:00:55.7]} 37. fxe5 {[%clk
0:00:27.7]} 37... fxe5 {[%clk 0:00:52.7]} 38. Nc5 {[%clk 0:00:25.1]} 38... Rxe3+
{[%clk 0:00:16]} 39. Kxe3 {[%clk 0:00:26.6]} 39... Rg3+ {[%clk 0:00:17.7]} 40.
Kd2 {[%clk 0:00:27.9]} 40... e4 {[%clk 0:00:16.5]} 41. c7 {[%clk 0:00:27.4]}
41... Rg8 {[%clk 0:00:15.9]} 42. Nb7 {[%clk 0:00:28]} 42... Kf4 {[%clk
0:00:15.2]} 43. Nd8 {[%clk 0:00:29.4]} 43... e3+ {[%clk 0:00:15.1]} 44. Kd3
{[%clk 0:00:27.5]} 44... Kf3 {[%clk 0:00:07.7]} 45. c8=Q {[%clk 0:00:26.5]}
45... Rf8 {[%clk 0:00:08.1]} 46. Qh3+ {[%clk 0:00:26.1]} 1-0